bitfinex-derivatives/quotes_SOLF0:USTF0_20260204
["timestamp","ask_amount","ask_price","bid_price","bid_amount"]
[1770240712459,9.7762,92.264,92.195,12.51668256]
[1770240713658,86.72,92.271,92.196,9.7823]
[1770240713848,86.72,92.271,92.197,12.52669016]
[1770240714250,8.26122189,92.3,92.197,12.52669016]
[1770240714456,9.7747,92.269,92.198,12.52669016]
[1770240715250,9.7756,92.26,92.198,12.52669016]
[1770240715759,9.7767,92.249,92.198,12.52669016]
[1770240716054,96.54,92.259,92.198,12.52669016]
[1770240716655,9.7761,92.255,92.198,12.52669016]
[1770240717754,9.7751,92.265,92.198,12.52669016]
[1770240717962,8.26122189,92.32,92.198,12.52669016]
[1770240718159,96.82,92.319,92.198,12.52669016]
[1770240718462,96.84,92.318,92.198,12.52669016]
[1770240719362,9.7741,92.275,92.202,9.7816]
[1770240719561,8.26122189,92.32,92.198,12.52669016]
[1770240719861,424.2777232,92.327,92.211,12.51166044]
[1770240720055,21.72,92.374,92.161,32.71]
[1770240720056,97.62,92.33,92.238,12.51166044]
[1770240720361,105.88122189,92.33,92.238,12.51166044]
[1770240721162,97.62,92.33,92.238,12.51166044]
[1770240722060,8.26122189,92.35,92.238,12.51166044]
[1770240722360,8.26122189,92.35,92.182,19.5676]
[1770240722361,8.26122189,92.33,92.254,12.59108782]
[1770240722763,9.7706,92.308,92.254,12.59108782]
[1770240723060,8.26122189,92.35,92.254,12.59108782]
[1770240723560,9.7684,92.329,92.255,9.7761]
[1770240723752,9.7684,92.329,92.256,12.58352825]
[1770240724263,9.7684,92.329,92.258,12.58352825]
[1770240724857,19.5291,92.365,92.258,12.58352825]
[1770240725058,8.26122189,92.35,92.258,12.58352825]
[1770240725363,9.7708,92.306,92.258,12.58352825]
[1770240725857,9.7708,92.306,92.15,152.2458]
[1770240725858,9.7737,92.278,92.214,12.57129164]
[1770240726452,9.80915777,92.375,92.23,8.26122189]
[1770240726656,8.26122189,92.35,92.241,7.68529164]
[1770240726860,8.26122189,92.33,92.241,7.68529164]
[1770240727063,9.7727,92.288,92.241,7.68529164]
[1770240727263,8.26122189,92.29,92.222,7.67016859]
[1770240727562,9.7682,92.33,92.222,7.67016859]
[1770240727763,8.26122189,92.36,92.222,7.67016859]
[1770240727962,8.26122189,92.32,92.222,7.67016859]
[1770240728358,8.26122189,92.34,92.222,7.67016859]
[1770240729358,9.7709,92.305,92.231,7.86447622]
[1770240729755,8.26122189,92.34,92.231,7.86447622]
[1770240729959,9.7718,92.296,92.231,7.86447622]
[1770240730664,9.7718,92.296,92.233,7.86447622]
[1770240731568,8.26122189,92.34,92.233,7.86447622]
[1770240731569,9.773,92.285,92.233,7.86447622]
[1770240732161,8.26122189,92.34,92.233,7.86447622]
[1770240732564,8.26122189,92.34,92.239,8.0264923]
[1770240732565,9.7722,92.292,92.239,8.0264923]
[1770240732868,8.26122189,92.34,92.239,8.0264923]
[1770240733364,19.5356,92.334,92.239,8.0264923]
[1770240733565,8.26122189,92.34,92.239,8.0264923]
[1770240734061,19.5358,92.333,92.239,8.0264923]
[1770240734265,8.26122189,92.34,92.239,8.0264923]
[1770240734471,8.26122189,92.32,92.239,8.0264923]
[1770240735766,9.7718,92.296,92.239,8.0264923]
[1770240736768,8.26122189,92.32,92.239,8.0264923]
[1770240737363,8.26122189,92.34,92.239,8.0264923]
[1770240737866,19.5306,92.358,92.245,8.16964405]
[1770240737867,9.7695,92.318,92.245,8.16964405]
[1770240738768,8.26122189,92.38,92.263,8.16964405]
[1770240739566,9.7679,92.333,92.273,8.16936094]
[1770240739771,8.26122189,92.38,92.273,8.16936094]
[1770240740667,9.7687,92.325,92.273,8.16936094]
[1770240741070,9.7696,92.317,92.273,8.16936094]
[1770240741372,8.26122189,92.38,92.273,8.16936094]
[1770240741671,9.7669,92.342,92.283,9.7731]
[1770240741866,19.5235,92.391,92.284,8.18662276]
[1770240742365,151.787,92.43,92.28,8.26122189]
[1770240742366,8.26122189,92.41,92.304,8.18662276]
[1770240743080,19.5185,92.415,92.304,8.18662276]
[1770240743280,9.7629,92.38,92.309,8.09253918]
[1770240743480,19.5185,92.415,92.309,8.09253918]
[1770240744181,9.7614,92.394,92.309,8.09253918]
[1770240744378,9.7614,92.394,92.268,19.5494]
[1770240744379,8.26122189,92.46,92.321,8.09146181]
[1770240744581,151.708,92.478,92.321,8.09146181]
[1770240744582,8.26122189,92.44,92.321,8.09146181]
[1770240745676,9.76,92.407,92.335,9.7675]
[1770240745880,9.76,92.407,92.336,8.09479055]
[1770240746083,8.26122189,92.44,92.336,8.09479055]
[1770240747076,9.7612,92.396,92.336,8.09479055]
[1770240747275,8.26122189,92.42,92.336,8.09479055]
[1770240749873,8.26122189,92.42,92.222,152.1278]
[1770240749874,8.26122189,92.41,92.281,8.08367431]
[1770240750986,8.26122189,92.41,92.28,8.26122189]
[1770240750987,8.26122189,92.4,92.287,8.09375962]
[1770240751483,8.26122189,92.4,92.292,8.09375962]
[1770240753587,9.7652,92.359,92.292,8.09375962]
[1770240754281,9.7652,92.359,92.26,8.26122189]
[1770240754282,9.7652,92.359,92.294,8.0901806]
[1770240754990,9.7652,92.359,92.296,8.09407186]
[1770240755489,9.7652,92.359,92.241,19.5551]
[1770240755490,9.7652,92.359,92.299,8.09407186]
[1770240755988,9.7641,92.369,92.304,8.09407186]
[1770240756180,8.26122189,92.4,92.304,8.09407186]
[1770240756883,9.7647,92.364,92.304,8.09407186]
[1770240758385,9.7647,92.364,92.307,8.08197529]
[1770240758590,9.7647,92.364,92.238,10.00378419]
[1770240758591,8.26122189,92.46,92.321,8.08197529]
[1770240758887,8.26122189,92.46,92.348,8.07977929]
[1770240759289,8.26122189,92.44,92.348,8.07977929]
[1770240760386,9.7605,92.403,92.348,8.07977929]
[1770240761498,9.7605,92.403,92.261,10.00378419]
[1770240761499,8.26122189,92.42,92.323,8.08713369]
[1770240761695,19.5179,92.418,92.323,8.08713369]
[1770240761889,8.26122189,92.4,92.323,8.08713369]
[1770240762491,9.7637,92.373,92.323,8.08713369]
[1770240762690,8.26122189,92.42,92.323,8.08713369]
[1770240762889,8.26122189,92.44,92.323,8.08713369]
[1770240763197,8.26122189,92.42,92.323,8.08713369]
[1770240764086,19.5152,92.431,92.323,8.08713369]
[1770240764287,9.7595,92.412,92.344,7.93287277]
[1770240764488,19.5095,92.458,92.344,7.93287277]
[1770240764690,86.54,92.457,92.344,7.93287277]
[1770240765089,86.54,92.457,92.36,7.90743742]
[1770240765495,8.26122189,92.43,92.341,7.90743742]
[1770240765688,8.26122189,92.41,92.315,7.90743742]
[1770240765885,8.26122189,92.39,92.315,7.90743742]
[1770240766296,9.7645,92.365,92.315,7.90743742]
[1770240766497,19.5201,92.408,92.315,7.90743742]
[1770240767394,9.7631,92.378,92.318,17.75642626]
[1770240767696,9.7631,92.378,92.319,7.98702626]
[1770240768095,95.32,92.381,92.321,7.98702626]
[1770240769101,94.36,92.394,92.324,7.99318246]
[1770240769999,9.7616,92.393,92.335,7.99318246]
[1770240770399,86.52,92.398,92.335,7.99318246]
[1770240770599,99.5,92.403,92.335,7.99318246]
[1770240770892,9.7596,92.412,92.355,7.99972185]
[1770240771401,99.52,92.417,92.355,7.99972185]
[1770240771700,1.88404973,92.414,92.355,7.99972185]
[1770240772796,9.7619,92.389,92.323,7.99381532]
[1770240773197,8.23763009,92.37,92.251,7.99381532]
[1770240773395,8.23763009,92.35,92.251,7.99381532]
[1770240773604,13.1466489,92.382,92.251,7.99381532]
[1770240773605,8.23763009,92.33,92.251,7.99381532]
[1770240773802,99.82,92.329,92.251,7.99381532]
[1770240775500,9.7706,92.307,92.251,7.99381532]
[1770240778103,9.7696,92.317,92.251,7.99381532]
[1770240778308,99.88,92.324,92.251,7.99381532]
[1770240778511,8.23763009,92.35,92.251,7.99381532]
[1770240778710,9.7691,92.322,92.251,7.99381532]
[1770240779408,9.7691,92.322,92.22,8.23763009]
[1770240779409,9.7691,92.322,92.255,7.93003153]
[1770240780303,99.88,92.327,92.255,7.93003153]
[1770240780304,9.77,92.313,92.255,7.93003153]
[1770240781109,9.771,92.304,92.255,7.93003153]
[1770240781410,99.88,92.327,92.255,7.93003153]
[1770240782710,9.7708,92.306,92.255,7.93003153]
[1770240784805,9.7717,92.297,92.255,7.93003153]
[1770240786313,9.7707,92.307,92.255,7.93003153]
[1770240788213,19.5287,92.367,92.261,7.87278627]
[1770240789416,9.7694,92.319,92.261,7.87278627]
[1770240789916,8.23763009,92.35,92.261,7.87278627]
[1770240790611,19.5331,92.346,92.261,7.87278627]
[1770240790808,8.23763009,92.39,92.271,7.8465134]
[1770240791514,8.23763009,92.39,92.302,7.8465134]
[1770240792215,19.5243,92.388,92.302,7.8465134]
[1770240793111,9.7665,92.346,92.302,7.8465134]
[1770240794710,8.23763009,92.39,92.302,7.8465134]
[1770240794912,9.80397952,92.406,92.302,7.8465134]
[1770240795917,9.7637,92.372,92.305,7.87863802]
[1770240796215,9.80397952,92.406,92.305,7.87863802]
[1770240796813,8.23763009,92.39,92.305,7.87863802]
[1770240797209,9.7656,92.355,92.305,7.87863802]
[1770240797413,8.23763009,92.39,92.305,7.87863802]
[1770240798410,9.7652,92.359,92.305,7.87863802]
[1770240799014,417.39733479,92.408,92.236,152.1047]
[1770240799015,9.7637,92.373,92.319,7.87343948]
[1770240799217,417.39733479,92.408,92.319,7.87343948]
[1770240800010,417.39733479,92.408,92.321,7.87343948]
[1770240800620,9.7607,92.401,92.341,7.87343948]
[1770240801123,9.7598,92.41,92.346,7.86831963]
[1770240801926,9.7598,92.41,92.35,7.86831963]
[1770240802620,9.7589,92.418,92.35,7.86831963]
[1770240802820,1.88390184,92.434,92.35,7.86831963]
[1770240803821,9.7609,92.399,92.35,7.86831963]
[1770240804914,9.80397952,92.467,92.361,7.8618531]
[1770240805114,151.6672,92.503,92.367,7.8618531]
[1770240805115,19.5068,92.471,92.367,7.8618531]
[1770240805312,8.23763009,92.44,92.35,7.8618531]
[1770240805820,1.8833309,92.454,92.35,7.8618531]
[1770240805821,8.23763009,92.42,92.35,7.8618531]
[1770240807319,9.763,92.379,92.35,7.8618531]
[1770240807629,9.763,92.379,92.334,7.94943087]
[1770240808121,9.764,92.37,92.334,7.94943087]
[1770240808325,9.764,92.37,92.224,13.28150699]
[1770240808326,8.23763009,92.4,92.316,7.94943087]
[1770240809119,9.7645,92.365,92.316,7.94943087]
[1770240809824,8.23763009,92.4,92.316,7.94943087]
[1770240809825,9.7655,92.356,92.316,7.94943087]
[1770240812121,9.7663,92.348,92.316,7.94943087]
[1770240813628,9.7653,92.357,92.316,7.94943087]
[1770240816030,9.7662,92.349,92.316,7.94943087]
[1770240816232,8.23763009,92.4,92.316,7.94943087]
[1770240816728,9.7655,92.356,92.316,7.94943087]
[1770240817033,8.23763009,92.4,92.316,7.94943087]
[1770240818133,9.7652,92.359,92.316,7.94943087]
[1770240818730,8.23763009,92.4,92.316,7.94943087]
[1770240819633,9.7665,92.346,92.316,7.94943087]
[1770240820534,9.7673,92.339,92.297,8.0462]
[1770240821339,8.23763009,92.38,92.297,8.0462]
[1770240821340,9.7682,92.33,92.297,8.0462]
[1770240821639,19.5274,92.373,92.297,8.0462]
[1770240822435,19.5277,92.371,92.297,8.0462]
[1770240822734,8.23763009,92.38,92.297,8.0462]
[1770240823639,9.87037344,92.378,92.297,8.0462]
[1770240823838,8.23763009,92.36,92.297,8.0462]
[1770240825330,9.7687,92.325,92.297,8.0462]
[1770240826447,9.7677,92.335,92.297,8.0462]
[1770240827138,8.23763009,92.38,92.297,8.0462]
[1770240827543,9.7667,92.344,92.297,8.0462]
[1770240828635,9.7659,92.352,92.297,8.0462]
[1770240828840,9.87037344,92.395,92.297,8.0462]
[1770240829035,9.87037344,92.396,92.297,8.0462]
[1770240829242,9.7647,92.363,92.297,8.0462]
[1770240830047,9.7655,92.356,92.297,8.0462]
[1770240830546,19.5234,92.392,92.297,8.0462]
[1770240830744,8.23763009,92.38,92.297,8.0462]
[1770240830946,18.10800353,92.38,92.297,8.0462]
[1770240831340,29.39667344,92.378,92.297,8.0462]
[1770240831540,18.10800353,92.38,92.297,8.0462]
[1770240831736,8.23763009,92.38,92.297,8.0462]
[1770240831942,9.87037344,92.378,92.297,8.0462]
[1770240832136,9.87037344,92.377,92.297,8.0462]
[1770240832341,19.5275,92.372,92.297,8.0462]
[1770240832741,8.23763009,92.36,92.253,8.052141]
[1770240832947,9.7702,92.311,92.253,8.052141]
[1770240833145,19.5306,92.358,92.253,8.052141]
[1770240833146,9.87037344,92.353,92.253,8.052141]
[1770240833447,19.5323,92.35,92.253,8.052141]
[1770240834445,27.7839595,92.35,92.253,8.052141]
[1770240836849,9.7704,92.309,92.253,8.052141]
[1770240837445,9.7712,92.302,92.253,8.052141]
[1770240838839,9.7719,92.295,92.253,8.052141]
[1770240839749,8.2516595,92.35,92.253,8.052141]
[1770240839750,151.9189,92.349,92.253,8.052141]
[1770240839944,8.2516595,92.33,92.253,4.1e-05]
[1770240840144,151.9521,92.329,92.253,4.1e-05]
[1770240840344,9.7749,92.267,92.253,4.1e-05]
[1770240840545,8.2516595,92.31,92.18,8.2516595]
[1770240840748,151.9917,92.305,92.18,8.2516595]
[1770240841050,9.87037344,92.303,92.18,8.2516595]
[1770240841250,3.9548142,92.28,92.18,8.2516595]
[1770240841750,9.7766,92.25,92.198,9.7821]
[1770240842149,9.7766,92.25,92.199,3.85246429]
[1770240845444,3.9548142,92.28,92.199,3.85246429]
[1770240846153,3.9548142,92.308,92.199,3.85246429]
[1770240846346,3.9548142,92.308,92.16,19.5723]
[1770240846347,3.9548142,92.308,92.221,3.85246429]
[1770240848146,3.9548142,92.281,92.221,3.85246429]
[1770240848854,9.7745,92.271,92.221,3.85246429]
[1770240850359,3.9548142,92.262,92.205,3.85246429]
[1770240851554,9.7772,92.245,92.205,3.85246429]
[1770240852058,9.7762,92.255,92.205,3.85246429]
[1770240853053,3.9548142,92.262,92.208,3.85246429]
[1770240853254,151.9066,92.357,92.208,3.85246429]
[1770240853255,3.9548142,92.319,92.208,3.85246429]
[1770240853657,9.7739,92.277,92.226,3.85246429]
[1770240856361,3.9548142,92.307,92.238,3.85246429]
[1770240856949,3.9548142,92.307,92.22,8.2516595]
[1770240856950,9.7709,92.305,92.252,3.85246429]
[1770240859660,3.9548142,92.309,92.252,3.85246429]
[1770240860664,9.772,92.295,92.252,3.85246429]
[1770240860857,3.9548142,92.309,92.252,3.85246429]
[1770240861366,9.7711,92.303,92.254,3.85246429]
[1770240861657,3.9548142,92.354,92.261,3.85246429]
[1770240862058,9.7682,92.33,92.272,3.85246429]
[1770240862258,3.9548142,92.354,92.272,3.85246429]
[1770240862763,3.9548142,92.326,92.272,3.85246429]
[1770240863453,9.7703,92.31,92.241,3.85246429]
[1770240863652,3.9548142,92.326,92.241,3.85246429]
[1770240863864,9.7724,92.29,92.241,3.85246429]
[1770240864069,3.93309286,92.3,92.225,3.7037752]
[1770240864456,9.7734,92.281,92.225,3.7037752]
[1770240865463,9.7744,92.272,92.225,3.7037752]
[1770240865659,9.7744,92.272,92.207,9.7812]
[1770240865660,3.93309286,92.284,92.181,3.7037752]
[1770240866965,3.93309286,92.284,92.184,3.7037752]
[1770240867163,3.93309286,92.284,92.201,3.7037752]
[1770240868262,9.7732,92.283,92.207,3.7037752]
[1770240869767,9.7732,92.283,92.216,3.7037752]
[1770240870066,9.7721,92.293,92.216,3.7037752]
[1770240870471,3.93309286,92.301,92.222,3.7037752]
[1770240870972,151.925,92.346,92.164,152.2233]
[1770240870973,3.93309286,92.254,92.201,3.7037752]
[1770240871369,3.93309286,92.298,92.201,3.7037752]
[1770240871565,9.7764,92.253,92.201,3.7037752]
[1770240871965,3.93309286,92.264,92.201,3.7037752]
[1770240872862,9.7774,92.243,92.201,3.7037752]
[1770240874277,3.93309286,92.242,92.178,3.7037752]
[1770240875770,9.7786,92.232,92.178,3.7037752]
[1770240877872,3.93309286,92.242,92.178,3.7037752]
[1770240878276,3.93309286,92.242,92.181,3.7037752]
[1770240879773,3.93309286,92.242,92.183,3.7037752]
[1770240880373,3.93309286,92.242,92.138,13.40568015]
[1770240880374,3.93309286,92.281,92.188,3.7037752]
[1770240880674,3.93309286,92.281,92.201,3.7037752]
[1770240881770,9.7725,92.289,92.223,3.7037752]
[1770240882173,13.70459286,92.299,92.235,3.7037752]
[1770240882473,3.93309286,92.298,92.235,3.7037752]
[1770240882874,9.7722,92.292,92.235,3.7037752]
[1770240883378,3.93309286,92.298,92.235,3.7037752]
[1770240883573,9.7746,92.27,92.235,3.7037752]
[1770240884174,9.7746,92.27,92.208,3.7037752]
[1770240884368,3.93309286,92.263,92.192,3.7037752]
[1770240885275,9.7764,92.253,92.192,3.7037752]
[1770240888172,13.70949286,92.253,92.192,3.7037752]
[1770240888968,13.70949286,92.253,92.194,3.7037752]
[1770240889174,9.7764,92.253,92.194,3.7037752]
[1770240890573,9.7764,92.253,92.117,20.20998129]
[1770240890574,3.93309286,92.269,92.207,3.7037752]
[1770240890979,3.93309286,92.285,92.207,3.7037752]
[1770240891174,3.93309286,92.285,92.227,3.7037752]
[1770240891977,13.70639286,92.282,92.228,3.7037752]
[1770240892176,3.93309286,92.281,92.228,3.7037752]
[1770240892383,3.93309286,92.281,92.212,3.7037752]
[1770240892575,9.7748,92.268,92.212,3.7037752]
[1770240893780,9.7748,92.268,92.214,3.7037752]
[1770240894577,9.7748,92.268,92.216,3.62781016]
[1770240895571,3.94162618,92.265,92.197,3.62781016]
[1770240896282,9.7775,92.242,92.197,3.62781016]
[1770240897285,3.94162618,92.265,92.197,3.62781016]
[1770240897286,3.94162618,92.28,92.197,3.62781016]
[1770240897480,3.94162618,92.325,92.211,3.62781016]
[1770240898082,9.7721,92.293,92.237,13.40581016]
[1770240899188,9.7721,92.293,92.244,9.7772]
[1770240901582,9.7721,92.293,92.192,19.5656]
[1770240901583,3.78165387,92.315,92.258,3.60958992]
[1770240902483,9.7703,92.31,92.262,3.60958992]
[1770240902884,3.78165387,92.336,92.262,3.60958992]
[1770240903084,9.7684,92.328,92.283,9.7731]
[1770240903280,3.78165387,92.327,92.262,3.60958992]
[1770240903682,9.7687,92.326,92.272,9.7743]
[1770240903881,3.78165387,92.327,92.273,3.60958992]
[1770240904180,9.7675,92.337,92.284,3.60958992]
[1770240904384,3.78165387,92.343,92.284,3.60958992]
[1770240904889,3.78165387,92.341,92.284,3.60958992]
[1770240905679,9.7679,92.333,92.284,3.60958992]
[1770240906286,3.78165387,92.321,92.261,9.7755]
[1770240906681,3.78165387,92.321,92.262,3.60958992]
[1770240906880,3.78165387,92.321,92.274,9.774]
[1770240908485,9.7693,92.319,92.274,9.774]
[1770240908703,3.78165387,92.321,92.246,3.60958992]
[1770240909086,3.78165387,92.281,92.2,3.60958992]
[1770240909283,3.78165387,92.279,92.2,3.60958992]
[1770240909488,3.78165387,92.279,92.14,3.60958992]
[1770240909992,3.78165387,92.234,92.169,3.60958992]
[1770240910690,9.7795,92.223,92.17,9.7851]
[1770240911390,9.7785,92.233,92.176,9.7844]
[1770240911589,9.7785,92.233,92.176,13.39398992]
[1770240911794,3.78165387,92.234,92.177,3.60958992]
[1770240911989,3.78165387,92.266,92.177,3.60958992]
[1770240912390,3.78165387,92.244,92.177,3.60958992]
[1770240913788,9.7782,92.235,92.177,3.60958992]
[1770240914782,9.7782,92.235,92.178,9.7842]
[1770240915184,3.78165387,92.244,92.151,3.60958992]
[1770240915489,3.78165387,92.242,92.151,3.60958992]
[1770240915689,3.78165387,92.24,92.151,3.60958992]
[1770240916292,3.78165387,92.24,92.129,263.70559423]
[1770240916293,3.78165387,92.198,92.133,9.789]
[1770240916595,3.78165387,92.198,92.089,19.5875]
[1770240916596,3.78165387,92.198,92.072,3.60958992]
[1770240916784,3.78165387,92.189,92.072,3.60958992]
[1770240917792,3.78165387,92.161,92.087,3.60958992]
[1770240918386,3.78165387,92.161,92.089,3.60958992]
[1770240918988,3.78165387,92.161,92.03,8.25640436]
[1770240918989,3.78165387,92.137,92.069,3.60958992]
[1770240919584,9.7888,92.136,92.07,9.7957]
[1770240919888,9.7888,92.136,92.071,3.60958992]
[1770240920592,92.82,92.151,92.071,3.60958992]
[1770240920593,9.7904,92.12,92.071,3.60958992]
[1770240920792,3.78165387,92.135,92.071,3.60958992]
[1770240920987,3.78165387,92.135,92.058,9.797]
[1770240920988,9.7905,92.12,92.054,3.60958992]
[1770240921190,3.78165387,92.119,92.054,3.60958992]
[1770240921990,3.78165387,92.114,92.054,3.60958992]
[1770240922687,9.7921,92.104,92.054,3.60958992]
[1770240924790,3.78165387,92.114,92.054,3.60958992]
[1770240924992,8.25640436,92.16,92.054,3.60958992]
[1770240924993,3.78128558,92.132,92.054,3.60958992]
[1770240925490,3.78128558,92.129,92.021,3.6577049]
[1770240926287,13.57198558,92.118,92.043,3.6577049]
[1770240926496,3.78128558,92.159,92.043,3.6577049]
[1770240926697,3.78128558,92.159,92.006,185.0939]
[1770240926698,3.78128558,92.159,92.061,3.6577049]
[1770240926995,9.788,92.143,92.082,3.6577049]
[1770240927586,9.788,92.143,92.084,3.6577049]
[1770240927790,13.56758558,92.159,92.084,3.6577049]
[1770240928394,9.7867,92.156,92.092,9.7933]
[1770240928588,3.78128558,92.155,92.092,9.7933]
[1770240928993,3.78128558,92.155,92.092,13.4510049]
[1770240929192,3.78128558,92.155,92.1,9.7925]
[1770240929590,9.7869,92.154,92.093,3.6577049]
[1770240931190,9.7878,92.146,92.093,3.6577049]
[1770240933899,3.78128558,92.153,92.094,3.6577049]
[1770240934600,9.7872,92.151,92.095,9.793]
[1770240937203,9.7872,92.151,92.095,13.4507049]
[1770240938105,152.0854,92.248,92.109,3.6577049]
[1770240938106,3.78128558,92.192,92.109,3.6577049]
[1770240938405,3.78128558,92.192,92.121,3.6577049]
[1770240938806,9.7829,92.191,92.137,3.6577049]
[1770240939000,3.78128558,92.192,92.137,3.6577049]
[1770240939397,3.78128558,92.212,92.137,3.6577049]
[1770240939603,3.78128558,92.212,92.141,3.6577049]
[1770240939903,3.78128558,92.23,92.141,3.6577049]
[1770240940700,9.779,92.229,92.179,9.7841]
[1770240941307,3.78128558,92.23,92.188,9.7832]
[1770240942103,3.78128558,92.247,92.188,9.7832]
[1770240942299,151.9484,92.331,92.203,9.7815]
[1770240942300,9.7757,92.259,92.203,9.7815]
[1770240942501,3.78128558,92.264,92.204,3.6577049]
[1770240942909,3.78128558,92.264,92.21,9.7809]
[1770240943500,9.7753,92.263,92.21,9.7809]
[1770240943805,19.5406,92.311,92.204,3.6577049]
[1770240943806,3.78128558,92.262,92.204,3.6577049]
[1770240944207,3.78128558,92.279,92.207,3.6577049]
[1770240944608,9.7742,92.273,92.207,3.6577049]
[1770240944808,9.7742,92.273,92.212,9.7806]
[1770240945202,9.7742,92.273,92.18,8.25640436]
[1770240945203,3.78128558,92.279,92.213,3.6577049]
[1770240945404,3.78128558,92.319,92.232,3.6577049]
[1770240945809,3.78128558,92.303,92.232,3.6577049]
[1770240946009,3.78128558,92.327,92.262,3.6577049]
[1770240946307,3.78128558,92.399,92.262,3.6577049]
[1770240946503,9.7659,92.351,92.262,3.6577049]
[1770240946910,9.7659,92.351,92.281,3.6577049]
[1770240947516,13.54718558,92.351,92.281,3.6577049]
[1770240947711,3.78128558,92.347,92.268,9.7746]
[1770240948414,3.78128558,92.344,92.272,3.6577049]
[1770240949112,151.7696,92.44,92.3,8.25640436]
[1770240949113,3.78128558,92.399,92.3,8.25640436]
[1770240949414,3.78128558,92.399,92.301,3.6577049]
[1770240949919,3.78128558,92.383,92.301,3.6577049]
[1770240950315,9.7672,92.34,92.285,3.6577049]
[1770240951822,3.78128558,92.347,92.286,9.7728]
[1770240953123,3.78128558,92.37,92.293,3.6577049]
[1770240954925,9.764,92.369,92.296,3.81602008]
[1770240956928,9.7653,92.358,92.296,3.81602008]
[1770240957127,3.78128558,92.37,92.296,3.81602008]
[1770240957327,3.78128558,92.37,92.301,3.81602008]
[1770240957528,3.84525021,92.368,92.301,3.81602008]
[1770240957831,3.84525021,92.368,92.27,8.23829404]
[1770240957832,3.84525021,92.368,92.271,3.81602008]
[1770240958131,9.767,92.342,92.271,3.81602008]
[1770240958426,3.84525021,92.341,92.25,3.81602008]
[1770240958818,3.84525021,92.327,92.25,3.81602008]
[1770240959221,9.7706,92.307,92.25,3.81602008]
[1770240959428,3.57554434,92.306,92.231,3.83180952]
[1770240960725,9.7713,92.301,92.241,13.60930952]
[1770240961325,9.7714,92.299,92.242,3.83180952]
[1770240962128,3.57554434,92.3,92.245,3.83180952]
[1770240963132,3.57554434,92.318,92.245,3.83180952]
[1770240964228,9.7697,92.316,92.259,9.7756]
[1770240964830,9.7697,92.316,92.192,152.1759]
[1770240964831,3.57554434,92.389,92.269,3.83180952]
[1770240965029,3.57554434,92.389,92.26,8.23829404]
[1770240965030,3.57554434,92.389,92.281,3.83180952]
[1770240965427,19.5228,92.395,92.281,3.83180952]
[1770240965428,13.34114434,92.355,92.281,3.83180952]
[1770240966334,13.34114434,92.355,92.3,9.7713]
[1770240966931,9.7663,92.348,92.291,9.7723]
[1770240968030,3.57554434,92.401,92.298,3.83180952]
[1770240969837,3.57554434,92.351,92.279,3.83180952]
[1770240970235,9.7689,92.323,92.26,3.83180952]
[1770240971244,9.7689,92.323,92.263,3.83180952]
[1770240972236,9.7699,92.315,92.263,3.83180952]
[1770240972438,3.57554434,92.314,92.241,3.83180952]
[1770240972844,9.7714,92.3,92.246,3.83180952]
[1770240973739,9.7714,92.3,92.25,9.7766]
[1770240974145,3.57554434,92.314,92.246,3.83180952]
[1770240975241,3.57554434,92.314,92.25,9.7766]
[1770240975438,3.57554434,92.314,92.246,3.83180952]
[1770240975851,9.7722,92.293,92.246,3.83180952]
[1770240976049,3.57554434,92.314,92.246,3.83180952]
[1770240976444,3.57554434,92.314,92.255,3.83180952]
[1770240976840,9.7679,92.333,92.276,9.7738]
[1770240977045,9.7679,92.333,92.277,3.83180952]
[1770240977245,3.57554434,92.353,92.277,3.83180952]
[1770240977948,9.7665,92.346,92.288,9.7726]
[1770240978453,9.7665,92.346,92.226,19.5583]
[1770240978454,3.57554434,92.374,92.291,3.83180952]
[1770240979139,9.7642,92.368,92.314,9.7698]
[1770240979749,9.7649,92.361,92.304,9.7709]
[1770240980844,19.5194,92.411,92.307,3.83180952]
[1770240980845,3.57554434,92.387,92.307,3.83180952]
[1770240981045,3.57554434,92.409,92.311,3.83180952]
[1770240981247,3.57554434,92.409,92.351,3.83180952]
[1770240982050,9.7581,92.426,92.37,9.7639]
[1770240983053,3.57554434,92.429,92.37,9.7639]
[1770240983847,9.7581,92.426,92.36,9.765]
[1770240984050,3.68260227,92.425,92.36,9.765]
[1770240984249,3.68260227,92.425,92.361,3.66844107]
[1770240984852,3.68260227,92.425,92.376,9.7632]
[1770240986152,3.68260227,92.444,92.386,9.7622]
[1770240987760,3.68260227,92.436,92.361,3.66844107]
[1770240988161,3.68260227,92.436,92.287,13.40568015]
[1770240988162,3.68260227,92.428,92.364,9.7645]